[Event "Reykjavik Open 2025"]
[Site "Reykjavik"]
[Date "2025.04.14"]
[Round "8.14"]
[White "Kilic, Eray"]
[Black "Borne, Felix"]
[Result "1/2-1/2"]
[Annotator "RC"]
[ECO "B45"]
[WhiteElo "2473"]
[BlackElo "2225"]
[PlyCount "84"]
[EventDate "2025.04.09"]
[EventType "swiss"]
[EventCountry "ISL"]
[SourceTitle "playchess.com"]
[Source "ChessBase"]
[SourceQuality "1"]
[TimeControl "40/5400+30:1800+30"]

1. e4 {[%emt 0:00:03]} c5 {[%emt 0:00:06]} 2. Nf3 {[%emt 0:00:04]} Nc6 {[%emt 0:00:08]} 3. d4 {[%emt 0:00:03]} cxd4 {[%emt 0:00:07]} 4. Nxd4 {[%emt 0:00:04]} Nf6 {[%emt 0:00:08]} 5. Nc3 {[%emt 0:00:03]} e6 {[%emt 0:00:11]} 6. Be2 {[%emt 0:00:05]} d5 {[%emt 0:00:38]} 7. exd5 {[%emt 0:02:21]} exd5 {[%emt 0:00:04]} 8. O-O {[%emt 0:01:24]} Bd6 {[%emt 0:00:44]} 9. Bf3 {[%emt 0:06:49]} O-O {[%emt 0:01:21]} 10. Ndb5 {[%emt 0:01:59]} d4 {[%emt 0:23:58]} 11. Nxd6 {[%emt 0:06:41]} dxc3 {[%emt 0:21:45]} 12. bxc3 {[%emt 0:02:15]} Qa5 {[%emt 0:00:05]} 13. c4 {[%emt 0:09:16]} Rd8 {[%emt 0:06:47]} 14. Bf4 {[%emt 0:02:20]} Ne8 {[%emt 0:08:24]} 15. Re1 {[%emt 0:08:47]} Nxd6 {[%emt 0:02:23]} 16. Bxd6 {[%emt 0:02:59]} Be6 {[%emt 0:01:10]} 17. c5 {[%emt 0:00:05]} Rac8 {[%emt 0:01:56]} 18. Be4 {[%emt 0:08:38]} b6 {[%emt 0:04:33]} 19. Qh5 {[%emt 0:01:48]} h6 {[%emt 0:02:55]} 20. Red1 {[%emt 0:03:59]} bxc5 {[%emt 0:13:18]} 21. Qxc5 {[%emt 0:00:06]} Qa4 {[%emt 0:00:05]} 22. Qe3 {[%emt 0:02:22]} Nb4 {[%emt 0:00:12]} 23. Qf4 {[%emt 0:01:51]} Qd7 {[%emt 0:06:33]} 24. Qe5 {[%emt 0:09:40]} Nxc2 {[%emt 0:03:25]} 25. Rac1 {[%emt 0:00:44]} Na3 {[%emt 0:00:16]} 26. Rxc8 {[%emt 0:01:57]} Rxc8 {[%emt 0:00:49]} 27. Bd3 {[%emt 0:02:25]} Nc4 {[%emt 0:00:10]} 28. Bxc4 {[%emt 0:00:04]} Bxc4 {[%emt 0:00:25]} 29. h3 {[%emt 0:01:07]} Qe6 {[%emt 0:01:24]} 30. Qg3 {[%emt 0:01:44]} Bxa2 {[%emt 0:00:28]} 31. Be5 {[%emt 0:01:00]} f6 {[%emt 0:00:02]} 32. Bf4 {[%emt 0:00:05]} Kh7 {[%emt 0:00:56]} 33. Rd6 {[%emt 0:00:06]} Qf5 {[%emt 0:00:30]} 34. Ra6 {[%emt 0:00:26]} Bd5 {[%emt 0:00:38]} 35. Rxa7 {[%emt 0:00:57]} Qg6 {[%emt 0:00:01]} 36. Qxg6+ {[%emt 0:00:13]} Kxg6 {[%emt 0:00:01]} 37. Kh2 {[%emt 0:00:05]} h5 {[%emt 0:00:19]} 38. Be3 {[%emt 0:00:21]} Rb8 {[%emt 0:00:46]} 39. Re7 {[%emt 0:00:12]} Bf7 {[%emt 0:01:40]} 40. Kg3 {[%emt 0:00:06]} Re8 {[%emt 0:00:11]} 41. Rc7 {[%emt 0:30:01]} Bd5 {[%emt 0:01:45]} 42. Rc5 {[%emt 0:00:00]} Be6 {[%emt 0:01:19]} 1/2-1/2

[Event "Reykjavik Open 2025"]
[Site "Reykjavik"]
[Date "2025.04.14"]
[Round "8.15"]
[White "Haug, Havard"]
[Black "Hjartarson, Johann"]
[Result "0-1"]
[Annotator "RC"]
[ECO "B07"]
[WhiteElo "2339"]
[BlackElo "2461"]
[PlyCount "82"]
[EventDate "2025.04.09"]
[EventType "swiss"]
[EventCountry "ISL"]
[SourceTitle "playchess.com"]
[Source "ChessBase"]
[SourceQuality "1"]
[TimeControl "40/5400+30:1800+30"]

1. e4 {[%emt 0:00:02]} g6 {[%emt 0:00:14]} 2. d4 {[%emt 0:00:59]} Bg7 {[%emt 0:00:08]} 3. Nf3 {[%emt 0:04:47]} d6 {[%emt 0:00:10]} 4. Bd3 {[%emt 0:03:32]} Nf6 {[%emt 0:00:20]} 5. O-O {[%emt 0:00:23]} O-O {[%emt 0:00:07]} 6. c3 {[%emt 0:02:26]} Nbd7 {[%emt 0:00:54]} 7. Bg5 {[%emt 0:11:44]} h6 {[%emt 0:02:14]} 8. Bh4 {[%emt 0:00:28]} e5 {[%emt 0:00:59]} 9. Nbd2 {[%emt 0:00:26]} Qe8 {[%emt 0:01:10]} 10. dxe5 {[%emt 0:03:47]} dxe5 {[%emt 0:00:37]} 11. Bxf6 {[%emt 0:00:45]} Nxf6 {[%emt 0:01:29]} 12. Qc2 {[%emt 0:02:30]} Nh5 {[%emt 0:05:55]} 13. Rfd1 {[%emt 0:02:18]} Nf4 {[%emt 0:01:01]} 14. Bf1 {[%emt 0:01:05]} b6 {[%emt 0:00:59]} 15. Nc4 {[%emt 0:08:30]} Bg4 {[%emt 0:06:05]} 16. Be2 {[%emt 0:01:17]} f5 {[%emt 0:03:38]} 17. Ne3 {[%emt 0:06:52]} Bh5 {[%emt 0:13:23]} 18. Nd5 {[%emt 0:18:28]} fxe4 {[%emt 0:01:56]} 19. Qxe4 {[%emt 0:01:20]} Nxe2+ {[%emt 0:11:43]} 20. Qxe2 {[%emt 0:00:20]} Qf7 {[%emt 0:08:10]} 21. Qc4 {[%emt 0:10:49]} c5 {[%emt 0:08:05]} 22. Rd3 {[%emt 0:05:05]} Rae8 {[%emt 0:02:52]} 23. Re1 {[%emt 0:03:10]} e4 {[%emt 0:05:25]} 24. Rde3 {[%emt 0:05:47]} b5 {[%emt 0:00:35]} 25. Qxc5 {[%emt 0:01:35]} exf3 {[%emt 0:02:36]} 26. Ne7+ {[%emt 0:03:40]} Kh7 {[%emt 0:00:29]} 27. g3 {[%emt 0:00:01]} Qc4 {[%emt 0:04:51]} 28. Qxc4 {[%emt 0:01:51]} bxc4 {[%emt 0:00:06]} 29. Re4 {[%emt 0:00:31]} g5 {[%emt 0:03:00]} 30. Rxc4 {[%emt 0:00:31]} Bg6 {[%emt 0:01:06]} 31. Rc6 {[%emt 0:00:09]} Rf7 {[%emt 0:02:35]} 32. Rce6 {[%emt 0:00:24]} Bd3 {[%emt 0:00:51]} 33. R1e3 {[%emt 0:00:55]} Bc4 {[%emt 0:00:42]} 34. R6e4 {[%emt 0:00:28]} Bxa2 {[%emt 0:00:21]} 35. h4 {[%emt 0:00:03]} gxh4 {[%emt 0:00:31]} 36. g4 {[%emt 0:00:15]} Bb1 {[%emt 0:00:50]} 37. Re6 {[%emt 0:00:11]} Rf4 {[%emt 0:00:27]} 38. Kh2 {[%emt 0:00:07]} Rd8 {[%emt 0:01:16]} 39. Re1 {[%emt 0:00:51]} Bc2 {[%emt 0:00:41]} 40. Nc6 {[%emt 0:00:27]} Rd2 {[%emt 0:00:55]} 41. Kh3 {[%emt 0:30:06]} Rxf2 {[%emt 0:30:39]} 0-1

[Event "Reykjavik Open 2025"]
[Site "Reykjavik"]
[Date "2025.04.14"]
[Round "8.16"]
[White "Papadiamandis, Elliot"]
[Black "Kjartansson, Gudmundur"]
[Result "1-0"]
[Annotator "RC"]
[ECO "C45"]
[WhiteElo "2315"]
[BlackElo "2450"]
[PlyCount "75"]
[EventDate "2025.04.09"]
[EventType "swiss"]
[EventCountry "ISL"]
[SourceTitle "playchess.com"]
[Source "ChessBase"]
[SourceQuality "1"]
[TimeControl "40/5400+30:1800+30"]

1. e4 {[%emt 0:00:07]} e5 {[%emt 0:00:05]} 2. Nf3 {[%emt 0:00:23]} Nc6 {[%emt 0:00:05]} 3. d4 {[%emt 0:00:31]} exd4 {[%emt 0:00:04]} 4. Nxd4 {[%emt 0:00:06]} Nf6 {[%emt 0:00:17]} 5. Nxc6 {[%emt 0:00:17]} bxc6 {[%emt 0:00:03]} 6. Nd2 {[%emt 0:00:12]} d5 {[%emt 0:04:16]} 7. exd5 {[%emt 0:01:11]} cxd5 {[%emt 0:01:57]} 8. Bb5+ {[%emt 0:00:11]} Bd7 {[%emt 0:00:26]} 9. Bxd7+ {[%emt 0:00:14]} Qxd7 {[%emt 0:00:13]} 10. O-O {[%emt 0:00:06]} Be7 {[%emt 0:00:28]} 11. b3 {[%emt 0:00:14]} O-O {[%emt 0:00:55]} 12. Bb2 {[%emt 0:00:03]} a5 {[%emt 0:01:50]} 13. a4 {[%emt 0:00:07]} c5 {[%emt 0:03:17]} 14. Qf3 {[%emt 0:08:34]} Rfc8 {[%emt 0:23:32]} 15. Rad1 {[%emt 0:06:10]} Qc6 {[%emt 0:00:37]} 16. Rfe1 {[%emt 0:01:00]} Kf8 {[%emt 0:09:28]} 17. Qf5 {[%emt 0:15:27]} d4 {[%emt 0:14:26]} 18. Nc4 {[%emt 0:03:23]} g6 {[%emt 0:02:39]} 19. Qh3 {[%emt 0:05:01]} Qb7 {[%emt 0:04:42]} 20. Bc1 {[%emt 0:04:34]} Re8 {[%emt 0:11:33]} 21. Bg5 {[%emt 0:07:27]} Nh5 {[%emt 0:00:43]} 22. Bd2 {[%emt 0:01:27]} Qc7 {[%emt 0:00:37]} 23. Qf3 {[%emt 0:04:03]} Kg8 {[%emt 0:00:44]} 24. Re5 {[%emt 0:05:30]} Ng7 {[%emt 0:03:48]} 25. Bf4 {[%emt 0:02:14]} Qa7 {[%emt 0:02:11]} 26. Qc6 {[%emt 0:07:46]} Rec8 {[%emt 0:01:12]} 27. Qf3 {[%emt 0:01:36]} Bf6 {[%emt 0:06:07]} 28. Rd5 {[%emt 0:02:59]} Ne6 {[%emt 0:02:50]} 29. Bd2 {[%emt 0:00:55]} Bd8 {[%emt 0:00:27]} 30. Re1 {[%emt 0:03:33]} Bc7 {[%emt 0:03:07]} 31. h4 {[%emt 0:00:51]} Rd8 {[%emt 0:00:30]} 32. h5 {[%emt 0:01:22]} Rxd5 {[%emt 0:00:05]} 33. Qxd5 {[%emt 0:00:05]} Rd8 {[%emt 0:00:04]} 34. Qc6 {[%emt 0:00:17]} Nf8 {[%emt 0:03:34]} 35. Bh6 {[%emt 0:01:06]} Nd7 {[%emt 0:00:23]} 36. Re7 {[%emt 0:01:26]} Qb8 {[%emt 0:00:41]} 37. Rxd7 {[%emt 0:00:40]} Re8 {[%emt 0:00:05]} 38. Qxc7 {[%emt 0:01:09]} 1-0

[Event "Reykjavik Open 2025"]
[Site "Reykjavik"]
[Date "2025.04.14"]
[Round "8.17"]
[White "Hagner, Bennet"]
[Black "Pipiras, Filipa Fortuna"]
[Result "0-1"]
[Annotator "RC"]
[ECO "A20"]
[WhiteElo "2430"]
[BlackElo "2195"]
[PlyCount "68"]
[EventDate "2025.04.09"]
[EventType "swiss"]
[EventCountry "ISL"]
[SourceTitle "playchess.com"]
[Source "ChessBase"]
[SourceQuality "1"]
[TimeControl "40/5400+30:1800+30"]

1. c4 {[%emt 0:00:03]} e5 {[%emt 0:00:44]} 2. d3 {[%emt 0:00:06]} Nf6 {[%emt 0:00:24]} 3. Nf3 {[%emt 0:00:09]} Nc6 {[%emt 0:00:14]} 4. a3 {[%emt 0:00:08]} d5 {[%emt 0:00:58]} 5. cxd5 {[%emt 0:00:07]} Nxd5 {[%emt 0:00:07]} 6. e3 {[%emt 0:00:06]} g6 {[%emt 0:08:39]} 7. b4 {[%emt 0:07:58]} Bg7 {[%emt 0:00:19]} 8. Bb2 {[%emt 0:00:08]} a6 {[%emt 0:00:55]} 9. Nbd2 {[%emt 0:01:09]} O-O {[%emt 0:00:26]} 10. Qc2 {[%emt 0:00:36]} Qe7 {[%emt 0:16:13]} 11. Be2 {[%emt 0:02:33]} Be6 {[%emt 0:00:46]} 12. O-O {[%emt 0:00:28]} Rad8 {[%emt 0:01:25]} 13. Rac1 {[%emt 0:01:09]} Nb6 {[%emt 0:08:27]} 14. Rfe1 {[%emt 0:06:53]} f5 {[%emt 0:01:35]} 15. Bf1 {[%emt 0:01:12]} g5 {[%emt 0:07:21]} 16. Qc5 {[%emt 0:07:22]} Qf6 {[%emt 0:02:40]} 17. h3 {[%emt 0:33:07]} Na4 {[%emt 0:02:11]} 18. Qc2 {[%emt 0:00:03]} Nxb2 {[%emt 0:00:07]} 19. Qxb2 {[%emt 0:00:05]} h5 {[%emt 0:11:52]} 20. g3 {[%emt 0:14:58]} g4 {[%emt 0:02:21]} 21. Nh4 {[%emt 0:00:29]} Qf7 {[%emt 0:02:25]} 22. hxg4 {[%emt 0:00:43]} hxg4 {[%emt 0:00:57]} 23. b5 {[%emt 0:01:30]} Nb8 {[%emt 0:07:53]} 24. bxa6 {[%emt 0:07:17]} bxa6 {[%emt 0:00:13]} 25. Rc2 {[%emt 0:00:18]} Bf6 {[%emt 0:01:48]} 26. Rec1 {[%emt 0:04:23]} c6 {[%emt 0:03:10]} 27. Ng2 {[%emt 0:04:01]} Rd7 {[%emt 0:03:09]} 28. Nc4 {[%emt 0:00:28]} Qh5 {[%emt 0:02:12]} 29. Nh4 {[%emt 0:03:37]} f4 {[%emt 0:04:56]} 30. Qb1 {[%emt 0:02:26]} Rh7 {[%emt 0:01:19]} 31. exf4 {[%emt 0:00:21]} exf4 {[%emt 0:00:24]} 32. Bg2 {[%emt 0:02:04]} f3 {[%emt 0:00:11]} 33. Re1 {[%emt 0:00:31]} Bd5 {[%emt 0:00:46]} 34. Qc1 {[%emt 0:00:33]} fxg2 {[%emt 0:00:23]} 0-1

[Event "Reykjavik Open 2025"]
[Site "Reykjavik"]
[Date "2025.04.14"]
[Round "8.18"]
[White "Frayna, Janelle Mae"]
[Black "Stefansson, Hannes"]
[Result "0-1"]
[Annotator "RC"]
[ECO "B43"]
[WhiteElo "2311"]
[BlackElo "2420"]
[PlyCount "78"]
[EventDate "2025.04.09"]
[EventType "swiss"]
[EventCountry "ISL"]
[SourceTitle "playchess.com"]
[Source "ChessBase"]
[SourceQuality "1"]
[TimeControl "40/5400+30:1800+30"]

1. e4 {[%emt 0:00:13]} c5 {[%emt 0:00:17]} 2. Nc3 {[%emt 0:00:46]} e6 {[%emt 0:02:19]} 3. Nf3 {[%emt 0:01:08]} a6 {[%emt 0:00:45]} 4. g3 {[%emt 0:02:06]} b5 {[%emt 0:01:32]} 5. Bg2 {[%emt 0:01:55]} Bb7 {[%emt 0:00:51]} 6. d4 {[%emt 0:00:03]} cxd4 {[%emt 0:02:47]} 7. Nxd4 {[%emt 0:00:33]} Nf6 {[%emt 0:01:49]} 8. O-O {[%emt 0:03:24]} b4 {[%emt 0:01:21]} 9. Na4 {[%emt 0:01:17]} Bxe4 {[%emt 0:05:40]} 10. Bxe4 {[%emt 0:01:31]} Nxe4 {[%emt 0:00:05]} 11. c4 {[%emt 0:01:00]} Nc5 {[%emt 0:10:14]} 12. a3 {[%emt 0:09:22]} Nxa4 {[%emt 0:05:54]} 13. Qxa4 {[%emt 0:00:06]} Qb6 {[%emt 0:11:55]} 14. Nb5 {[%emt 0:09:26]} Nc6 {[%emt 0:04:35]} 15. Be3 {[%emt 0:17:47]} Qb7 {[%emt 0:00:50]} 16. axb4 {[%emt 0:00:06]} Be7 {[%emt 0:01:25]} 17. Nd4 {[%emt 0:09:16]} Nxb4 {[%emt 0:01:36]} 18. Bd2 {[%emt 0:04:38]} O-O {[%emt 0:01:59]} 19. Bxb4 {[%emt 0:00:12]} Bxb4 {[%emt 0:00:29]} 20. Rfd1 {[%emt 0:01:30]} Be7 {[%emt 0:02:43]} 21. Nc2 {[%emt 0:07:45]} Rfd8 {[%emt 0:04:30]} 22. b4 {[%emt 0:01:42]} h5 {[%emt 0:02:03]} 23. h4 {[%emt 0:02:38]} Bf6 {[%emt 0:01:56]} 24. Ra3 {[%emt 0:01:18]} Qe4 {[%emt 0:05:08]} 25. c5 {[%emt 0:01:46]} Rac8 {[%emt 0:07:00]} 26. Ne3 {[%emt 0:01:28]} Rc6 {[%emt 0:05:39]} 27. Rad3 {[%emt 0:04:34]} Rb8 {[%emt 0:00:59]} 28. Rb3 {[%emt 0:03:54]} Be7 {[%emt 0:02:55]} 29. Qa3 {[%emt 0:05:09]} d6 {[%emt 0:00:58]} 30. b5 {[%emt 0:00:33]} axb5 {[%emt 0:03:34]} 31. cxd6 {[%emt 0:00:04]} Bf8 {[%emt 0:00:38]} 32. Qa7 {[%emt 0:00:41]} Rcc8 {[%emt 0:02:32]} 33. d7 {[%emt 0:02:02]} Rd8 {[%emt 0:00:05]} 34. Qxb8 {[%emt 0:01:31]} Rxb8 {[%emt 0:00:05]} 35. d8=Q {[%emt 0:00:03]} Rxd8 {[%emt 0:00:05]} 36. Rxd8 {[%emt 0:00:03]} b4 {[%emt 0:02:06]} 37. Rc8 {[%emt 0:03:09]} g6 {[%emt 0:02:50]} 38. Kf1 {[%emt 0:00:38]} Qb7 {[%emt 0:00:55]} 39. Rc1 {[%emt 0:01:33]} Qh1+ {[%emt 0:00:04]} 0-1

[Event "Reykjavik Open 2025"]
[Site "Reykjavik"]
[Date "2025.04.14"]
[Round "8.19"]
[White "Kirk, Ezra"]
[Black "Shafer, Logan C"]
[Result "1/2-1/2"]
[Annotator "RC"]
[ECO "B52"]
[WhiteElo "2394"]
[BlackElo "2193"]
[PlyCount "59"]
[EventDate "2025.04.09"]
[EventType "swiss"]
[EventCountry "ISL"]
[SourceTitle "playchess.com"]
[Source "ChessBase"]
[SourceQuality "1"]
[TimeControl "40/5400+30:1800+30"]

1. e4 {[%emt 0:00:04]} c5 {[%emt 0:00:09]} 2. Nf3 {[%emt 0:00:17]} d6 {[%emt 0:00:09]} 3. Bb5+ {[%emt 0:00:28]} Bd7 {[%emt 0:00:08]} 4. Bxd7+ {[%emt 0:00:42]} Qxd7 {[%emt 0:00:05]} 5. O-O {[%emt 0:00:51]} Nf6 {[%emt 0:00:09]} 6. Qe2 {[%emt 0:00:27]} Nc6 {[%emt 0:00:18]} 7. c3 {[%emt 0:01:02]} e6 {[%emt 0:00:15]} 8. d4 {[%emt 0:01:31]} cxd4 {[%emt 0:00:13]} 9. cxd4 {[%emt 0:00:19]} d5 {[%emt 0:00:07]} 10. e5 {[%emt 0:00:37]} Ne4 {[%emt 0:00:05]} 11. Nbd2 {[%emt 0:00:13]} Nxd2 {[%emt 0:00:06]} 12. Bxd2 {[%emt 0:00:06]} Be7 {[%emt 0:00:08]} 13. h4 {[%emt 0:02:35]} O-O {[%emt 0:05:31]} 14. Rfe1 {[%emt 0:03:30]} Rfc8 {[%emt 0:03:42]} 15. a3 {[%emt 0:07:24]} h6 {[%emt 0:03:53]} 16. Qd3 {[%emt 0:03:43]} Qd8 {[%emt 0:06:13]} 17. g4 {[%emt 0:05:59]} a5 {[%emt 0:23:22]} 18. Kg2 {[%emt 0:02:38]} Bf8 {[%emt 0:05:50]} 19. Re2 {[%emt 0:08:27]} a4 {[%emt 0:01:33]} 20. g5 {[%emt 0:02:39]} Ne7 {[%emt 0:01:38]} 21. gxh6 {[%emt 0:01:18]} gxh6 {[%emt 0:00:08]} 22. Rg1 {[%emt 0:01:39]} Nf5 {[%emt 0:01:38]} 23. Kh3+ {[%emt 0:06:53]} Kh8 {[%emt 0:00:23]} 24. Ree1 {[%emt 0:04:45]} Qb6 {[%emt 0:02:12]} 25. Bc3 {[%emt 0:03:03]} Be7 {[%emt 0:01:49]} 26. Rg4 {[%emt 0:14:26]} Rg8 {[%emt 0:03:21]} 27. Reg1 {[%emt 0:00:41]} Rxg4 {[%emt 0:00:30]} 28. Rxg4 {[%emt 0:00:40]} Rg8 {[%emt 0:00:22]} 29. Rxg8+ {[%emt 0:01:08]} Kxg8 {[%emt 0:00:02]} 30. h5 {[%emt 0:01:11]} 1/2-1/2

[Event "Reykjavik Open 2025"]
[Site "Reykjavik"]
[Date "2025.04.14"]
[Round "8.20"]
[White "George Samir, David"]
[Black "Terrieux, Kevin"]
[Result "1-0"]
[Annotator "RC"]
[ECO "B60"]
[WhiteElo "2303"]
[BlackElo "2394"]
[PlyCount "141"]
[EventDate "2025.04.09"]
[EventType "swiss"]
[EventCountry "ISL"]
[SourceTitle "playchess.com"]
[Source "ChessBase"]
[SourceQuality "1"]
[TimeControl "40/5400+30:1800+30"]

1. e4 {[%emt 0:00:02]} c5 {[%emt 0:00:21]} 2. Nf3 {[%emt 0:00:03]} d6 {[%emt 0:00:16]} 3. d4 {[%emt 0:00:04]} cxd4 {[%emt 0:00:08]} 4. Nxd4 {[%emt 0:00:05]} Nf6 {[%emt 0:00:12]} 5. Nc3 {[%emt 0:00:04]} Nc6 {[%emt 0:01:58]} 6. Bg5 {[%emt 0:00:05]} g6 {[%emt 0:00:05]} 7. Bxf6 {[%emt 0:04:19]} exf6 {[%emt 0:00:06]} 8. Bc4 {[%emt 0:05:07]} Bg7 {[%emt 0:05:21]} 9. Qd2 {[%emt 0:02:57]} O-O {[%emt 0:07:06]} 10. O-O-O {[%emt 0:01:40]} f5 {[%emt 0:21:43]} 11. Ndb5 {[%emt 0:15:49]} a6 {[%emt 0:20:59]} 12. Nxd6 {[%emt 0:00:58]} Nd4 {[%emt 0:00:09]} 13. f4 {[%emt 0:12:13]} fxe4 {[%emt 0:00:09]} 14. Ncxe4 {[%emt 0:01:38]} Qc7 {[%emt 0:15:24]} 15. Qf2 {[%emt 0:09:11]} Nf5 {[%emt 0:03:12]} 16. Bb3 {[%emt 0:05:59]} Nxd6 {[%emt 0:02:18]} 17. Nxd6 {[%emt 0:00:10]} Bg4 {[%emt 0:00:22]} 18. Rd3 {[%emt 0:01:03]} Rad8 {[%emt 0:05:33]} 19. Qd2 {[%emt 0:00:06]} Bf6 {[%emt 0:02:12]} 20. f5 {[%emt 0:07:46]} Bxf5 {[%emt 0:03:50]} 21. Nxf5 {[%emt 0:00:11]} gxf5 {[%emt 0:00:06]} 22. Bd5 {[%emt 0:04:15]} Rfe8 {[%emt 0:02:45]} 23. Rd1 {[%emt 0:02:44]} Kh8 {[%emt 0:03:27]} 24. c3 {[%emt 0:02:25]} b5 {[%emt 0:02:23]} 25. Qh6 {[%emt 0:00:20]} Bg7 {[%emt 0:00:19]} 26. Qh5 {[%emt 0:00:15]} b4 {[%emt 0:00:23]} 27. c4 {[%emt 0:06:47]} Rxd5 {[%emt 0:00:26]} 28. Rxd5 {[%emt 0:00:11]} Qxc4+ {[%emt 0:00:01]} 29. Kb1 {[%emt 0:00:06]} Qe4+ {[%emt 0:00:09]} 30. R5d3 {[%emt 0:01:05]} Qxg2 {[%emt 0:00:16]} 31. R3d2 {[%emt 0:00:02]} Qe4+ {[%emt 0:01:40]} 32. Rc2 {[%emt 0:00:55]} f4 {[%emt 0:02:18]} 33. Qxf7 {[%emt 0:00:49]} f3 {[%emt 0:00:34]} 34. Qd5 {[%emt 0:03:02]} Qe3 {[%emt 0:00:43]} 35. Rf1 {[%emt 0:01:13]} Bh6 {[%emt 0:00:18]} 36. Qd1 {[%emt 0:08:51]} a5 {[%emt 0:00:44]} 37. Rcf2 {[%emt 0:00:25]} Qe4+ {[%emt 0:00:01]} 38. Ka1 {[%emt 0:00:29]} a4 {[%emt 0:00:55]} 39. Qxf3 {[%emt 0:00:58]} Qe5 {[%emt 0:00:05]} 40. Qf6+ {[%emt 0:01:43]} Qxf6 {[%emt 0:00:23]} 41. Rxf6 {[%emt 0:30:13]} Bg7 {[%emt 0:30:15]} 42. Rb6 {[%emt 0:00:14]} a3 {[%emt 0:00:00]} 43. Rxb4 {[%emt 0:00:00]} Bxb2+ {[%emt 0:00:00]} 44. Kb1 {[%emt 0:00:00]} Rc8 {[%emt 0:00:00]} 45. Rb7 {[%emt 0:00:00]} h6 {[%emt 0:00:00]} 46. h4 {[%emt 0:00:00]} Kg8 {[%emt 0:00:00]} 47. h5 {[%emt 0:00:00]} Rc5 {[%emt 0:00:00]} 48. Rd1 {[%emt 0:00:00]} Rc8 {[%emt 0:00:00]} 49. Rxb2 {[%emt 0:00:00]} axb2 {[%emt 0:00:00]} 50. Rd5 {[%emt 0:00:00]} Rb8 {[%emt 0:00:00]} 51. Rf5 {[%emt 0:00:00]} Kg7 {[%emt 0:00:00]} 52. a4 {[%emt 0:00:00]} Rb4 {[%emt 0:00:00]} 53. a5 {[%emt 0:00:00]} Rb3 {[%emt 0:00:00]} 54. Rc5 {[%emt 0:00:00]} Kf6 {[%emt 0:00:00]} 55. Rc6+ {[%emt 0:02:25]} Kg5 {[%emt 0:00:00]} 56. Rb6 {[%emt 0:00:03]} Ra3 {[%emt 0:00:29]} 57. Rb5+ {[%emt 0:00:03]} Kf6 {[%emt 0:03:21]} 58. Kxb2 {[%emt 0:00:05]} Ra4 {[%emt 0:00:08]} 59. Kb3 {[%emt 0:00:15]} Ra1 {[%emt 0:00:06]} 60. Kc4 {[%emt 0:00:27]} Ke7 {[%emt 0:00:34]} 61. Kc5 {[%emt 0:00:06]} Kd7 {[%emt 0:00:23]} 62. Kb6 {[%emt 0:00:07]} Kc8 {[%emt 0:00:29]} 63. Rc5+ {[%emt 0:00:09]} Kb8 {[%emt 0:00:16]} 64. Rc6 {[%emt 0:00:04]} Rb1+ {[%emt 0:00:23]} 65. Ka6 {[%emt 0:00:03]} Rh1 {[%emt 0:01:12]} 66. Rxh6 {[%emt 0:00:05]} Rh2 {[%emt 0:00:13]} 67. Rb6+ {[%emt 0:00:54]} Kc7 {[%emt 0:00:39]} 68. h6 {[%emt 0:00:04]} Rh1 {[%emt 0:01:00]} 69. Ka7 {[%emt 0:00:11]} Rh2 {[%emt 0:02:02]} 70. a6 {[%emt 0:00:02]} Rh1 {[%emt 0:00:10]} 71. Rb7+ {[%emt 0:00:03]} 1-0

[Event "Reykjavik Open 2025"]
[Site "Reykjavik"]
[Date "2025.04.14"]
[Round "8.21"]
[White "Sriansh Das"]
[Black "Thorfinnsson, Bjorn"]
[Result "1-0"]
[Annotator "RC"]
[ECO "C24"]
[WhiteElo "2278"]
[BlackElo "2386"]
[PlyCount "121"]
[EventDate "2025.04.09"]
[EventType "swiss"]
[EventCountry "ISL"]
[SourceTitle "playchess.com"]
[Source "ChessBase"]
[SourceQuality "1"]
[TimeControl "40/5400+30:1800+30"]

1. e4 {[%emt 0:00:09]} e5 {[%emt 0:00:05]} 2. Nf3 {[%emt 0:00:04]} Nc6 {[%emt 0:00:07]} 3. Bc4 {[%emt 0:00:04]} Nf6 {[%emt 0:00:07]} 4. d3 {[%emt 0:00:08]} d5 {[%emt 0:00:46]} 5. exd5 {[%emt 0:00:07]} Nxd5 {[%emt 0:00:05]} 6. O-O {[%emt 0:01:11]} Bg4 {[%emt 0:05:29]} 7. Re1 {[%emt 0:00:49]} Qd6 {[%emt 0:00:26]} 8. Nbd2 {[%emt 0:04:03]} O-O-O {[%emt 0:00:38]} 9. h3 {[%emt 0:03:35]} Bh5 {[%emt 0:00:42]} 10. Ne4 {[%emt 0:01:10]} Qe7 {[%emt 0:02:17]} 11. c3 {[%emt 0:03:16]} f6 {[%emt 0:02:08]} 12. Ng3 {[%emt 0:02:44]} Bf7 {[%emt 0:01:29]} 13. Qc2 {[%emt 0:01:35]} Qd7 {[%emt 0:01:10]} 14. a4 {[%emt 0:03:57]} Nf4 {[%emt 0:05:00]} 15. Bxf7 {[%emt 0:01:53]} Qxf7 {[%emt 0:00:05]} 16. d4 {[%emt 0:00:40]} Qg6 {[%emt 0:00:18]} 17. Re4 {[%emt 0:09:12]} h5 {[%emt 0:07:00]} 18. Bxf4 {[%emt 0:18:38]} exf4 {[%emt 0:00:08]} 19. Nf1 {[%emt 0:02:06]} Bd6 {[%emt 0:06:31]} 20. Rae1 {[%emt 0:00:55]} Qh7 {[%emt 0:09:23]} 21. Qb3 {[%emt 0:14:46]} Qg8 {[%emt 0:03:32]} 22. Qxg8 {[%emt 0:02:03]} Rhxg8 {[%emt 0:00:59]} 23. Nh4 {[%emt 0:00:36]} g6 {[%emt 0:03:29]} 24. Nd2 {[%emt 0:03:35]} Rg7 {[%emt 0:14:03]} 25. Nc4 {[%emt 0:08:53]} Bf8 {[%emt 0:00:15]} 26. Re6 {[%emt 0:00:59]} g5 {[%emt 0:02:22]} 27. Nf5 {[%emt 0:00:04]} Rf7 {[%emt 0:00:04]} 28. g4 {[%emt 0:04:32]} Kd7 {[%emt 0:09:11]} 29. Kg2 {[%emt 0:04:53]} Ne7 {[%emt 0:02:42]} 30. Nxe7 {[%emt 0:00:59]} Bxe7 {[%emt 0:00:10]} 31. Na5 {[%emt 0:01:24]} Rb8 {[%emt 0:00:39]} 32. Kf3 {[%emt 0:00:25]} hxg4+ {[%emt 0:07:55]} 33. hxg4 {[%emt 0:00:15]} c6 {[%emt 0:00:36]} 34. R6e2 {[%emt 0:04:54]} Bd8 {[%emt 0:14:42]} 35. Nb3 {[%emt 0:00:13]} b6 {[%emt 0:00:43]} 36. Re8 {[%emt 0:01:53]} Rh7 {[%emt 0:00:54]} 37. Rg8 {[%emt 0:00:46]} Rb7 {[%emt 0:00:41]} 38. a5 {[%emt 0:01:24]} Be7 {[%emt 0:01:05]} 39. a6 {[%emt 0:00:03]} Rc7 {[%emt 0:00:08]} 40. Rb8 {[%emt 0:00:40]} Bd8 {[%emt 0:01:49]} 41. d5 {[%emt 0:04:49]} Rh3+ {[%emt 0:10:53]} 42. Kg2 {[%emt 0:01:00]} Rd3 {[%emt 0:00:26]} 43. dxc6+ {[%emt 0:01:28]} Rxc6 {[%emt 0:00:43]} 44. Nd4 {[%emt 0:00:15]} f3+ {[%emt 0:05:03]} 45. Nxf3 {[%emt 0:03:53]} Rd5 {[%emt 0:09:49]} 46. Nd4 {[%emt 0:00:39]} Rc8 {[%emt 0:01:58]} 47. Rb7+ {[%emt 0:02:07]} Rc7 {[%emt 0:00:03]} 48. Rh1 {[%emt 0:02:46]} Kc8 {[%emt 0:00:26]} 49. Rh7 {[%emt 0:01:47]} Rdd7 {[%emt 0:03:32]} 50. Rxd7 {[%emt 0:00:31]} Kxd7 {[%emt 0:00:19]} 51. Rxc7+ {[%emt 0:01:14]} Bxc7 {[%emt 0:00:42]} 52. Kf3 {[%emt 0:00:08]} Bb8 {[%emt 0:01:55]} 53. Ke4 {[%emt 0:00:06]} Kd6 {[%emt 0:00:02]} 54. b4 {[%emt 0:00:17]} b5 {[%emt 0:00:36]} 55. Nxb5+ {[%emt 0:00:09]} Kc6 {[%emt 0:00:03]} 56. Nd4+ {[%emt 0:00:08]} Kb6 {[%emt 0:00:08]} 57. b5 {[%emt 0:00:05]} Be5 {[%emt 0:00:09]} 58. c4 {[%emt 0:00:44]} Bd6 {[%emt 0:00:46]} 59. Kd5 {[%emt 0:00:24]} Bb4 {[%emt 0:00:48]} 60. Nf5 {[%emt 0:01:13]} Ba3 {[%emt 0:00:19]} 61. Nd6 {[%emt 0:00:08]} 1-0